bitfinex/quotes_ETHUSD_20220213
["timestamp","ask_amount","ask_price","bid_price","bid_amount"]
[1644746282451,0.00971685,2918.2,2917.8,1.65751069]
[1644746282851,0.00971685,2918.2,2917.8,2.65751069]
[1644746283051,0.00971685,2918.2,2917.8,1.65751069]
[1644746283450,0.1713,2918.7,2917.8,1.65751069]
[1644746283451,0.1713,2918.7,2917.8,1.60289884]
[1644746283650,0.00972594,2918.2,2917.8,0.00972757]
[1644746284152,1.45783329,2918.1,2917.8,0.00972757]
[1644746284652,1.45783329,2918.1,2917.7,0.88208444]
[1644746284898,0.00973491,2918.2,2917.8,0.00973655]
[1644746285100,1.45777571,2918.1,2917.8,0.01263539]
[1644746285898,1.45777571,2918.1,2917.8,0.00289884]
[1644746286098,0.00973491,2918.2,2917.8,0.01263539]
[1644746286299,1.4577815,2918.1,2917.8,0.01263539]
[1644746287099,1.4577815,2918.1,2917.8,0.00289884]
[1644746287301,1.45780747,2918.0,2917.8,0.00973655]
[1644746287501,0.00973491,2918.2,2917.8,0.00973655]
[1644746287702,1.62910718,2918.1,2917.8,0.00973655]
[1644746287900,4.93078817,2918.0,2917.8,0.00973655]
[1644746288100,4.8337321,2917.9,2917.8,0.00973655]
[1644746288300,4.6624321,2917.9,2917.6,0.00289884]
[1644746288544,0.02631081,2917.6,2917.4,3.57657117]
[1644746288743,1.45780718,2917.5,2917.4,3.57657117]
[1644746288943,0.02631081,2917.6,2917.4,3.57657117]
[1644746289445,0.02631081,2917.6,2917.4,4.43333117]
[1644746289643,0.02631081,2917.6,2917.4,4.43692908]
[1644746290248,0.02631081,2917.6,2917.4,4.73692908]
[1644746290447,0.02631081,2917.6,2917.4,3.88016908]
[1644746290649,0.02631081,2917.6,2917.4,3.57657117]
[1644746290847,0.02631081,2917.6,2917.4,3.58016908]
[1644746291852,0.02631081,2917.6,2917.4,3.57657117]
[1644746292050,0.02631081,2917.6,2917.4,3.58721709]
[1644746292302,0.02631081,2917.6,2917.5,1.0]
[1644746293894,0.02631081,2917.6,2917.5,1.17209129]
[1644746294499,0.02631081,2917.6,2917.5,1.34339129]
[1644746295100,0.02631081,2917.6,2917.5,5.163695]
[1644746298043,0.02631081,2917.6,2917.5,4.82030371]
[1644746301698,0.02631081,2917.6,2917.5,4.99160371]
[1644746302800,0.02631081,2917.6,2917.5,4.82030371]
[1644746307397,0.02631081,2917.6,2917.5,1.0]
[1644746307796,0.02631081,2917.6,2917.4,0.313235]
[1644746308594,0.02631081,2917.6,2917.4,0.30289903]
[1644746308793,0.02631081,2917.6,2917.4,0.31323506]
[1644746309900,0.02509912,2917.6,2917.4,0.30289903]
[1644746310098,0.02509912,2917.6,2917.4,0.31323506]
[1644746310698,0.02509912,2917.6,2917.4,1.16992506]
[1644746311146,0.02509912,2917.6,2917.4,1.15958903]
[1644746311349,0.02509912,2917.6,2917.4,1.16992506]
[1644746312148,0.02509912,2917.6,2917.4,1.15958903]
[1644746312347,0.02509912,2917.6,2917.5,0.85667]
[1644746312748,0.02509912,2917.6,2917.5,1.50006129]
[1644746313148,0.02509912,2917.6,2917.5,2.50006129]
[1644746313752,9.912e-05,2917.6,2917.5,27.50006129]
[1644746313952,0.01033299,2918.2,2917.8,0.98539949]
[1644746314150,0.01033299,2918.2,2918.0,0.85641]
[1644746314551,7.48,2919.1,2918.0,2.32850129]
[1644746314803,7.48,2919.1,2918.7,1.03875152]
[1644746314804,1.45749055,2919.0,2918.7,1.03875152]
[1644746315202,1.2547027,2918.6,2918.3,2.1636]
[1644746315401,1.45749055,2918.5,2918.3,2.4636]
[1644746315601,1.45749055,2918.5,2918.3,1.3]
[1644746315800,1.45749055,2918.5,2918.3,0.3]
[1644746315999,1.45749055,2918.5,2918.2,0.6]
[1644746316200,1.4678244,2918.5,2918.2,0.6]
[1644746316502,1.45749055,2918.4,2918.2,0.6]
[1644746317203,1.45749055,2918.3,2918.2,0.6]
[1644746318403,0.01033403,2918.4,2918.2,0.6]
[1644746318647,1.45749055,2918.3,2918.2,0.6]
[1644746319248,1.45749055,2918.3,2917.9,2.09454058]
[1644746319449,1.45749055,2918.3,2917.9,2.39454058]
[1644746319651,1.45749055,2918.2,2917.9,1.39454058]
[1644746319853,0.01033402,2918.4,2917.9,2.39454058]
[1644746320058,1.45769855,2918.3,2917.9,2.39454058]
[1644746320460,1.45769855,2918.3,2917.9,0.3]
[1644746320656,1.45769855,2918.3,2917.8,1.18453533]
[1644746320657,1.45769855,2918.3,2917.8,0.47419903]
[1644746320857,1.46803276,2918.2,2917.8,1.18453498]
[1644746321059,0.01033421,2918.2,2917.8,1.18453498]
[1644746321456,1.45771633,2918.1,2917.8,1.18453498]
[1644746321856,1.45771633,2918.1,2917.8,1.17419903]
[1644746322057,4.36015923,2918.6,2917.8,1.17419903]
[1644746322058,0.01033386,2918.2,2917.8,1.18453463]
[1644746322304,1.45771404,2918.1,2917.9,1.25348612]
[1644746323294,0.010334,2918.2,2917.9,1.25348612]
[1644746324396,1.2547027,2918.6,2917.9,1.25348612]
[1644746324596,0.01033412,2918.2,2917.9,1.25348612]
[1644746325400,1.2547027,2918.6,2917.9,1.25348612]
[1644746325705,0.01033412,2918.2,2917.9,2.11010612]
[1644746326546,1.2547027,2918.6,2918.0,0.85653]
[1644746326746,1.45764714,2918.5,2918.4,1.05103232]
[1644746326946,0.01033411,2918.2,2918.0,0.85653]
[1644746327147,1.45769073,2918.1,2918.0,0.85653]
[1644746327645,1.45769073,2918.1,2917.9,1.15662]
[1644746328046,0.01033411,2918.2,2918.0,0.89089823]
[1644746328250,1.45769687,2918.1,2918.0,0.89089823]
[1644746329147,1.2547027,2918.6,2918.0,0.89089823]
[1644746329348,0.01033411,2918.2,2918.0,0.89089823]
[1644746330199,1.2547027,2918.6,2918.0,0.89089823]
[1644746330505,0.01033422,2918.2,2918.0,0.89089823]
[1644746331500,1.2547027,2918.6,2918.0,0.89089823]
[1644746331700,0.01033422,2918.2,2918.0,0.89089823]
[1644746332700,1.2547027,2918.6,2918.0,0.89089823]
[1644746332900,0.01033422,2918.2,2918.0,0.89089823]
[1644746333863,1.2547027,2918.6,2918.0,0.89089823]
[1644746334060,0.01033422,2918.2,2918.0,0.89089823]
[1644746335070,1.2547027,2918.6,2918.0,0.89089823]
[1644746335268,0.01033422,2918.2,2918.0,0.89089823]
[1644746336271,1.2547027,2918.6,2918.0,0.89089823]
[1644746336467,0.01033422,2918.2,2918.0,0.89089823]
[1644746337497,1.2547027,2918.6,2918.0,0.89089823]
[1644746337702,0.01033422,2918.2,2918.0,0.89089823]
[1644746337900,0.00902367,2918.2,2918.0,1.74742823]
[1644746338298,0.00902367,2918.2,2918.0,2.74742823]
[1644746338499,0.00902367,2918.2,2918.0,1.74742823]
[1644746338698,1.2547027,2918.6,2918.0,1.74742823]
[1644746338699,1.2547027,2918.6,2918.0,2.91951952]
[1644746338902,1.45750772,2918.5,2918.1,21.884]
[1644746339298,1.45750772,2918.5,2918.2,1.17209129]
[1644746340101,1.46427063,2918.5,2918.2,1.17209129]
[1644746340303,0.00676291,2918.5,2918.2,1.17209129]
[1644746340502,0.00676291,2918.5,2918.3,1.71268]
[1644746340902,0.00676291,2918.5,2918.3,2.18477129]
[1644746341157,0.00378531,2919.0,2918.5,20.0]
[1644746341363,1.46109846,2919.0,2918.6,1.0]
[1644746341559,0.00378531,2919.1,2918.6,3.91177129]
[1644746341756,0.00378531,2919.1,2918.7,20.3]
[1644746341957,1.46107523,2919.1,2918.8,0.85616]
[1644746342158,1.45728992,2919.0,2918.8,3.07864611]
[1644746342357,0.17508531,2919.2,2918.8,23.07864611]
[1644746342657,1.46817732,2919.1,2918.9,0.85617]
[1644746342856,1.45729188,2919.0,2918.9,1.15617]
[1644746343257,0.01088544,2919.1,2918.9,1.15617]
[1644746343456,0.17508531,2919.2,2918.9,1.15617]
[1644746343658,1.46819951,2919.1,2918.9,1.15617]
[1644746343956,0.01088544,2919.1,2918.9,21.15617]
[1644746344160,0.01088544,2919.1,2918.9,1.15617]
[1644746344798,0.01088537,2919.1,2918.9,1.15617]
[1644746345802,0.00378531,2919.6,2918.9,1.15617]
[1644746346004,0.01088537,2919.1,2918.9,1.15617]
[1644746347004,0.00378531,2919.6,2918.9,1.15617]
[1644746347207,0.01088537,2919.1,2918.9,1.15617]
[1644746348207,3.26190674,2919.6,2918.9,0.3]
[1644746348407,1.45733861,2919.5,2918.9,0.3]
[1644746348650,0.01088537,2919.1,2918.9,0.3]
[1644746349048,1.45733861,2919.0,2918.9,0.3]
[1644746350156,1.45733861,2919.0,2918.5,2.01966]
[1644746350354,1.45733861,2919.0,2918.2,4.1675]
[1644746350355,0.89999999,2918.8,2918.3,1.0]
[1644746350556,1.45733861,2918.7,2918.3,1.0]
[1644746350953,1.46822461,2918.7,2918.2,0.3]
[1644746351155,1.45733861,2918.6,2918.1,1.15656]
[1644746351359,0.010886,2918.7,2918.1,2.15656]
[1644746351555,0.010886,2918.7,2918.4,1.12372838]
[1644746351754,0.010886,2918.7,2918.4,1.42372838]
[1644746351957,0.9037853,2918.8,2918.4,1.42372838]
[1644746352155,1.46838593,2918.7,2918.4,1.42372838]
[1644746352398,0.010886,2918.7,2918.4,1.42372838]
[1644746352602,1.45750891,2918.6,2918.4,1.42372838]
[1644746353197,0.9037853,2918.8,2918.4,1.42372838]
[1644746353397,0.01088607,2918.6,2918.4,1.42372838]
[1644746354198,0.9037853,2918.8,2918.4,1.42372838]
[1644746354199,1.45753793,2918.5,2918.4,1.42372838]
[1644746354399,0.9037853,2918.8,2918.4,1.42372838]
[1644746354603,0.01088607,2918.6,2918.4,1.42372838]
[1644746354799,0.01088607,2918.6,2918.4,0.3]
[1644746355004,1.4575688,2918.5,2918.1,2.15656]
[1644746355404,1.4575688,2918.5,2918.1,1.15656]
[1644746355605,1.4575688,2918.4,2918.1,1.15656]
[1644746355803,0.01088636,2918.4,2918.1,1.15656]
[1644746356047,0.01088636,2918.4,2918.3,1.18121711]
[1644746356447,1.46848382,2918.4,2918.3,1.18121711]
[1644746356647,1.45759746,2918.4,2918.3,1.18121711]
[1644746356849,1.45759746,2918.7,2918.3,1.18121711]
[1644746357048,0.01088629,2918.5,2918.3,1.18121711]
[1644746357252,1.45759746,2918.4,2918.3,1.18121711]
[1644746357948,1.45759746,2918.4,2918.1,0.85656]
[1644746358150,0.01088629,2918.5,2918.1,0.85656]
[1644746358349,1.45760737,2918.4,2918.1,0.85656]
[1644746358949,1.45760737,2918.4,2918.2,1.09534394]
[1644746359350,0.01088643,2918.4,2918.2,1.09534394]
[1644746360501,0.01088636,2918.4,2918.2,1.09534394]
[1644746361502,0.9037853,2918.8,2918.2,1.09534394]
[1644746361703,0.01088636,2918.4,2918.2,1.09534394]
[1644746362504,0.01088636,2918.4,2918.0,1.0]
[1644746362710,1.45764474,2918.3,2917.9,1.1713]
[1644746362905,1.45764474,2918.2,2917.9,0.3]
[1644746363106,1.45764474,2918.1,2917.8,0.01378757]
[1644746363304,0.01088636,2918.4,2917.8,0.01378757]
[1644746363547,1.45772222,2918.3,2917.8,0.0108888]
[1644746363748,1.45772222,2918.3,2917.8,0.01378757]
[1644746363948,1.45772222,2918.3,2917.8,0.00289877]
[1644746364151,1.46860879,2918.2,2917.8,0.01378699]
[1644746364348,1.46860879,2918.2,2917.8,0.87050699]
[1644746364349,0.01088657,2918.2,2917.8,0.87050699]
[1644746364551,0.01088657,2918.2,2917.8,1.04259828]
[1644746364749,0.01088657,2918.2,2917.8,1.21389828]
[1644746365155,3.5,2918.6,2917.8,1.20301006]
[1644746365358,0.01088645,2918.2,2917.8,1.21389817]
[1644746365555,0.01088645,2918.2,2918.1,1.0866373]
[1644746366255,3.5,2918.6,2918.1,1.0866373]
[1644746366454,1.45767065,2918.5,2918.1,1.0866373]
[1644746366656,0.01088657,2918.3,2917.8,1.04180722]
[1644746367502,4.4037853,2918.8,2917.8,1.03091877]
[1644746367698,1.45765207,2918.7,2918.1,1.01008849]
[1644746367898,0.01088657,2918.2,2918.1,1.01008849]
[1644746368701,0.9037853,2918.8,2918.1,1.01008849]
[1644746368900,0.01088657,2918.3,2918.1,1.01008849]
[1644746369102,0.01088657,2918.3,2918.1,1.31008849]
[1644746369302,0.01088657,2918.3,2918.1,1.61008849]
[1644746369502,0.01088657,2918.3,2918.1,2.46664849]
[1644746369702,0.00938659,2918.3,2918.1,2.46664849]
[1644746369906,0.9037853,2918.8,2918.1,2.46664849]
[1644746370109,1.45754796,2918.7,2918.1,2.46664849]
[1644746370705,1.45754796,2918.7,2918.1,1.61008849]
[1644746371750,1.45754796,2918.7,2918.6,0.97230562]
[1644746372754,1.45754796,2918.7,2918.2,1.3]
[1644746372951,1.45754796,2918.7,2918.1,1.6]
[1644746373154,1.45754796,2918.7,2918.1,0.3]
[1644746373354,4.57784133,2918.7,2918.1,0.3]
[1644746373656,4.57784133,2918.7,2917.9,1.8815219]
[1644746373657,1.45754796,2918.6,2917.9,1.8815219]
[1644746373854,0.01088621,2918.5,2917.9,2.1815219]
[1644746374053,1.45754796,2918.4,2917.9,2.1815219]
[1644746374906,1.45754796,2918.3,2917.9,2.1815219]
[1644746376205,0.01088601,2918.4,2917.9,2.1815219]
[1644746376505,1.45764234,2918.3,2917.9,2.1815219]
[1644746377306,0.01088601,2918.4,2917.9,2.1815219]
[1644746377705,1.45764234,2918.3,2917.9,2.1815219]
[1644746377905,1.45764234,2918.3,2917.9,2.3528219]
[1644746378651,0.01088601,2918.4,2917.9,2.3528219]
[1644746378850,1.45764367,2918.3,2917.9,2.3528219]
[1644746379652,3.11163101,2918.7,2917.9,2.3528219]
[1644746379857,0.01088601,2918.4,2917.9,1.3528219]
[1644746380056,1.45765157,2918.3,2917.9,1.3528219]
[1644746380877,3.11163101,2918.7,2917.9,1.1815219]
[1644746381059,0.01088601,2918.4,2917.9,1.1815219]
[1644746381255,1.45765558,2918.3,2917.9,1.1815219]
[1644746382056,3.31446335,2918.7,2917.9,1.1815219]
[1644746382303,0.01088601,2918.4,2917.9,1.1815219]
[1644746382504,1.45764671,2918.3,2917.9,1.1815219]
[1644746383306,0.01088601,2918.4,2917.9,1.1815219]
[1644746383503,1.45765716,2918.3,2917.9,1.1815219]
[1644746384305,3.55386578,2918.7,2917.9,1.1815219]
[1644746384507,0.01088601,2918.4,2917.9,1.1815219]
[1644746385509,3.38256578,2918.7,2917.9,1.1815219]
[1644746385709,1.45764104,2918.6,2917.9,1.1815219]
[1644746385913,0.01088612,2918.4,2917.9,1.1815219]
[1644746386351,1.457654,2918.3,2917.9,1.1815219]
[1644746386950,0.01088601,2918.4,2917.9,1.1815219]
[1644746387551,0.01088601,2918.4,2917.9,0.8815219]
[1644746387851,3.11769732,2918.7,2917.9,0.8815219]
[1644746388050,1.45765487,2918.6,2917.9,0.8815219]
[1644746388254,0.01088612,2918.4,2917.9,0.8815219]
[1644746388454,1.45765487,2918.3,2917.9,0.8815219]
[1644746389252,3.14458307,2918.7,2917.9,0.8815219]
[1644746389453,0.01088601,2918.4,2917.9,0.8815219]
[1644746389654,1.45765858,2918.3,2917.9,0.8815219]
[1644746390507,0.01088601,2918.4,2917.9,0.8815219]
[1644746390905,0.00894451,2918.4,2917.9,0.8815219]
[1644746391505,1.0750853,2918.8,2917.9,0.8815219]
[1644746392305,1.0750853,2918.8,2918.1,1.15659]
[1644746392904,0.00676081,2918.6,2918.1,1.15659]
[1644746393305,0.00676081,2918.6,2918.1,0.3]
[1644746393551,0.00676081,2918.6,2917.9,2.1815219]
[1644746393754,0.00676081,2918.6,2917.9,2.4815219]
[1644746394050,1.0750853,2918.8,2917.9,2.4815219]
[1644746394251,0.01088591,2918.5,2917.9,2.49241005]
[1644746395056,1.0750853,2918.8,2917.9,2.4815219]
[1644746395457,0.01088579,2918.5,2917.9,2.49240993]
[1644746396260,1.0750853,2918.8,2917.9,2.4815219]
[1644746396459,0.9037853,2918.8,2917.9,2.6528219]
[1644746396657,0.01088579,2918.5,2917.9,2.66370993]
[1644746397501,0.9037853,2918.8,2917.9,2.6528219]
[1644746397702,0.01088579,2918.5,2917.9,2.66370993]
[1644746398707,0.9037853,2918.8,2917.9,2.6528219]
[1644746398910,0.01088579,2918.5,2917.9,2.66370993]
[1644746400008,0.9037853,2918.8,2917.9,2.6528219]
[1644746400311,0.01088579,2918.5,2918.4,0.86543389]
[1644746401153,0.9037853,2918.8,2918.4,1.16543389]
[1644746401358,0.01088614,2918.6,2918.4,1.16543389]
[1644746402355,0.16033332,2918.5,2918.4,0.3]
[1644746402755,0.01088607,2918.6,2918.3,0.3]
[1644746402957,0.01088607,2918.6,2918.2,2.31298]
[1644746403357,0.01088607,2918.6,2918.2,1.12019942]
[1644746403558,3.10954882,2918.7,2918.2,1.12019942]
[1644746403861,0.16033332,2918.4,2918.2,1.12019942]
[1644746404061,0.01088621,2918.5,2918.2,1.12019942]
[1644746404459,0.01088621,2918.5,2918.2,0.82019942]
[1644746404663,3.10954882,2918.7,2918.2,0.82019942]
[1644746404915,0.01088614,2918.5,2918.2,0.82019942]
[1644746405114,0.01088614,2918.5,2918.2,0.3]
[1644746405418,0.01088614,2918.5,2916.7,1.19650432]
[1644746405419,4.25,2918.2,2916.7,1.19650432]
[1644746405623,4.25,2918.2,2916.3,11.09203034]
[1644746405624,5.01274851,2916.8,2915.4,1.13239432]
[1644746405821,5.01274851,2916.8,2914.5,2.91337953]
[1644746405822,5.01225784,2915.5,2914.5,2.91337953]
[1644746406019,0.26569356,2915.4,2914.5,2.91337953]
[1644746406220,0.26569356,2915.4,2913.9,0.25]
[1644746406221,4.70836544,2914.9,2913.9,0.25]
[1644746406422,4.70836544,2914.9,2913.5,1.0]
[1644746406423,42.83046493,2913.7,2913.5,1.0]
[1644746406623,3.5,2913.6,2913.5,1.0]
[1644746406820,3.5,2913.6,2911.9,3.20501409]
[1644746406821,8.20836544,2913.6,2912.4,0.25084074]
[1644746407019,8.20836544,2913.6,2911.6,20.0]
[1644746407021,4.25,2912.4,2911.6,11.35750361]
[1644746407225,4.70836544,2912.2,2911.6,10.54756542]
[1644746407424,4.70836544,2912.2,2911.0,5.25]
[1644746407425,3.5,2912.1,2911.0,5.25]
[1644746407720,0.01243959,2911.6,2911.0,5.0]
[1644746407918,0.71913959,2911.6,2910.3,0.25]
[1644746408121,0.7067,2911.6,2911.1,0.29163456]
[1644746408321,0.7067,2911.6,2910.4,0.25]
[1644746408572,3.5,2912.7,2910.4,0.25]
[1644746408573,0.1716,2912.0,2911.3,0.91165919]
[1644746408764,0.1716,2912.0,2910.6,0.25]
[1644746408765,3.6716,2913.3,2911.8,0.96337926]
[1644746408965,0.1716,2913.3,2911.4,0.25]
[1644746409169,0.1716,2913.4,2912.0,1.24719562]
[1644746409966,1.1716,2913.4,2912.6,0.01089757]
[1644746410166,4.6716,2913.4,2912.6,0.01089757]
[1644746410367,3.6716,2913.4,2912.6,0.01089757]
[1644746410568,3.5,2913.4,2912.6,0.01089757]
[1644746410769,3.5,2913.4,2913.3,0.29163456]
[1644746410970,3.5,2913.4,2912.6,0.17209129]
[1644746411180,0.1716,2914.2,2912.9,1.01311915]
[1644746411367,1.46034238,2914.1,2912.9,1.01311915]
[1644746411571,0.16033332,2913.4,2912.9,1.18521044]
[1644746411774,0.1716,2914.0,2912.9,1.78521044]
[1644746411973,0.1716,2914.0,2912.9,1.77431329]
[1644746412171,0.1716,2914.5,2912.9,1.77431329]
[1644746412400,5.0,2914.3,2913.3,0.01089653]
[1644746412601,5.0,2914.3,2912.9,1.34581464]
[1644746412602,0.02179305,2913.2,2912.9,1.04581464]
[1644746413204,0.02179305,2913.2,2912.9,1.002222]
[1644746414610,0.02179305,2913.2,2913.0,1.24719562]
[1644746414820,0.1716,2913.1,2913.0,2.49439124]
[1644746415009,0.9524,2913.1,2913.0,9.124e-05]
[1644746415210,4.25,2913.0,2912.5,0.00416206]
[1644746415412,4.25,2913.0,2912.4,0.01628594]
[1644746415413,0.01035928,2912.7,2912.4,0.000148]
[1644746415613,5.0,2912.5,2911.6,0.25]
[1644746415812,4.60805919,2912.7,2911.4,1.03798695]
[1644746415813,4.93465004,2912.4,2911.4,1.03798695]
[1644746416074,0.16033332,2911.8,2911.4,1.03798695]
[1644746416277,0.01035928,2912.7,2911.4,1.03798695]
[1644746417081,0.1716,2912.6,2911.4,1.03798695]
[1644746417278,6.83431996,2912.6,2911.4,1.03798695]
[1644746417680,0.16033332,2912.0,2911.4,1.01478695]
[1644746419284,0.16033332,2912.0,2910.6,0.25]
[1644746419485,0.1716,2911.9,2911.6,0.00405102]
[1644746419691,0.16033332,2911.8,2911.6,0.00405102]
[1644746419912,19.47514298,2912.0,2911.6,0.00405102]
[1644746420312,19.47514298,2912.0,2911.3,1.09174193]
[1644746420711,19.47514298,2912.0,2911.7,0.01090048]
[1644746421112,3.33928571,2911.9,2911.7,0.01090048]
[1644746421314,3.8866279,2912.5,2911.7,0.01090048]
[1644746421513,0.1716,2912.4,2911.7,0.01090048]
[1644746421712,0.01226082,2912.6,2910.7,0.00287996]
[1644746421713,0.1716,2912.5,2910.7,0.00287996]
[1644746421910,0.1716,2912.3,2912.0,0.01090007]
[1644746422111,0.1716,2912.4,2912.0,0.01090007]
[1644746422314,3.6675,2912.5,2912.0,0.01090007]
[1644746422315,3.8391,2912.5,2912.0,0.01090007]
[1644746422713,0.16033332,2912.2,2912.0,0.01090007]
[1644746422913,0.16033332,2912.2,2911.9,0.96916495]
[1644746423113,0.01035928,2912.7,2912.4,1.1660105]
[1644746423312,0.01035928,2912.7,2912.4,1.16889046]
[1644746424155,0.01035928,2912.7,2912.4,0.00287996]
[1644746424355,0.16033332,2912.6,2912.3,0.00405455]
[1644746424862,0.01035928,2912.7,2912.3,0.00405455]
[1644746425156,0.01035928,2912.7,2912.0,0.93631975]
[1644746425355,0.01035928,2912.7,2912.1,0.00287996]
[1644746425559,0.02126363,2912.7,2911.9,0.8482469]
[1644746425962,0.16033332,2912.4,2911.9,0.8482469]
[1644746426158,0.02126363,2912.7,2911.9,0.8482469]
[1644746426359,0.01035928,2912.7,2911.9,0.8482469]
[1644746426561,0.00618935,2912.5,2911.3,3.5283]
[1644746426759,0.00618935,2912.5,2911.3,3.8283]
[1644746427161,0.00618935,2912.5,2911.3,3.5283]
[1644746427415,0.16033332,2911.9,2911.3,3.5283]
[1644746427608,0.1716,2911.8,2911.4,0.00288002]
[1644746428008,0.1716,2912.3,2911.3,0.01619063]
[1644746428809,0.1716,2912.3,2911.1,0.96370955]
[1644746429010,0.1716,2912.3,2911.7,0.00404719]
[1644746429212,0.00809438,2911.3,2911.2,0.01619118]
[1644746430014,0.00809438,2911.3,2911.1,0.96658976]
[1644746430208,0.00809438,2911.3,2911.1,0.96370955]
[1644746430411,0.00809438,2911.3,2910.8,0.00288021]
[1644746430412,0.16033332,2911.2,2910.8,0.00288021]
[1644746430612,0.00809438,2911.3,2910.8,0.00288021]
[1644746431079,0.00809438,2911.3,2910.6,0.00288021]
[1644746431369,0.1716,2911.2,2910.6,0.00288021]
[1644746431566,0.1716,2911.2,2909.8,0.25]
[1644746431567,0.00136514,2910.6,2910.4,0.00288021]
[1644746431771,0.00136514,2910.6,2909.9,0.00288021]
[1644746432164,0.00136514,2910.6,2909.5,4.25]
[1644746432367,0.00136514,2910.6,2909.7,20.0]
[1644746432570,0.00136514,2910.6,2910.1,20.0]
[1644746432765,0.00136514,2910.6,2910.2,20.3]
[1644746432966,0.00136514,2910.6,2910.2,22.64070553]
[1644746433265,0.00136514,2910.6,2910.3,0.17209129]
[1644746433465,0.00136514,2910.6,2910.3,1.17209129]
[1644746433666,0.00136514,2910.6,2910.3,0.47209129]
[1644746433866,0.00136514,2910.6,2910.3,1.17613301]
[1644746434065,0.00136514,2910.6,2910.3,0.47613301]
[1644746434265,0.00136514,2910.6,2910.3,1.47613301]
[1644746434466,0.00136514,2910.6,2910.3,0.47613301]
[1644746434811,0.00136514,2910.6,2910.3,1.0]
[1644746435008,0.00136514,2910.6,2910.3,0.01091649]
[1644746436009,0.00136514,2910.6,2910.3,0.17209129]
[1644746436210,0.00136514,2910.6,2910.3,0.18300778]
[1644746437312,0.00136514,2910.6,2910.2,1.76861424]
[1644746437514,0.00136514,2910.6,2910.3,0.01091649]
[1644746438315,0.1716,2910.5,2910.3,0.01091649]
[1644746438579,0.00136514,2910.6,2909.4,0.17209129]
[1644746438780,0.1718,2910.5,2910.3,0.01091649]
[1644746439683,0.1718,2910.5,2909.9,1.16614841]
[1644746439882,0.1718,2910.5,2910.3,0.01091656]
[1644746440883,0.1718,2910.5,2909.9,1.16614841]
[1644746441082,0.1718,2910.5,2910.3,0.01091656]
[1644746441882,0.00136514,2910.6,2910.3,0.01091656]
[1644746442082,0.00136514,2910.6,2910.0,0.00287958]
[1644746442309,0.00136514,2910.6,2910.3,0.01091656]
[1644746443312,0.00136514,2910.6,2910.0,0.00287958]
[1644746443511,0.00136514,2910.6,2910.3,0.01091649]
[1644746444513,0.00136514,2910.6,2910.0,0.00287958]
[1644746444711,0.00136514,2910.6,2910.3,0.01091649]
[1644746445516,0.00136514,2910.6,2909.9,1.50982094]
[1644746445714,0.00136514,2910.6,2909.9,0.22110011]
[1644746445914,0.00136514,2910.6,2910.3,0.01091649]
[1644746446158,0.00136514,2910.6,2910.4,0.93911419]
[1644746446556,0.00136514,2910.6,2910.4,1.11120548]
[1644746446755,0.00136514,2910.6,2910.5,20.17209129]
[1644746446958,0.00136514,2910.6,2910.5,21.17209129]
[1644746447159,0.00136514,2910.6,2910.5,6.17209129]
[1644746447359,0.00136514,2910.6,2910.5,6.77209129]
[1644746447758,0.00136514,2910.6,2910.5,1.77209129]
[1644746447958,0.00136514,2910.6,2910.5,6.77209129]
[1644746448359,6.514e-05,2910.6,2910.5,10.61213716]
[1644746448564,0.1716,2912.6,2912.1,0.84860548]
[1644746448761,0.01035928,2912.7,2912.1,0.3]
[1644746448961,1.46087687,2912.6,2912.1,0.3]
[1644746449164,0.01035928,2912.7,2912.1,0.3]
[1644746449165,0.65120925,2912.2,2912.1,0.3]
[1644746449363,0.65120925,2912.2,2911.4,3.63210039]
[1644746449364,1.46087687,2912.2,2911.4,3.63210039]
[1644746449563,1.46087687,2912.1,2911.4,0.25]
[1644746449818,2.11208612,2912.2,2911.8,1.05026417]
[1644746450011,1.46087687,2912.1,2911.8,1.05026417]
[1644746450210,0.65120925,2912.0,2911.8,1.35026417]
[1644746450410,1.46087687,2911.9,2911.8,0.6]
[1644746450613,2.11208612,2911.9,2911.8,0.6]
[1644746450819,1.46087687,2911.9,2911.4,0.25]
[1644746451014,2.11208612,2911.9,2911.1,1.0]
[1644746451216,1.46087687,2911.8,2911.1,1.6]
[1644746451415,1.46087687,2911.8,2911.5,0.90818497]
[1644746451612,0.65120925,2911.6,2911.5,0.90818497]
[1644746451913,1.46087687,2911.8,2911.1,1.4585]
[1644746451914,2.11208612,2911.7,2911.1,0.3]
[1644746452112,2.11208612,2911.6,2911.0,0.3]
[1644746452313,1.46087687,2911.5,2911.0,0.3]
[1644746452713,2.11208612,2911.5,2911.0,0.3]
[1644746452912,1.46087687,2911.4,2911.0,0.3]
[1644746453114,1.46087687,2911.4,2911.1,1.19205329]
[1644746453318,1.46087687,2911.3,2911.1,1.49205329]
[1644746454457,1.46087687,2911.2,2911.1,1.49205329]
[1644746454657,1.46087687,2911.2,2911.1,0.3]
[1644746454859,1.46087687,2911.2,2910.7,0.01091696]
[1644746455058,1.46087687,2911.1,2910.7,0.01091696]
[1644746455259,1.46087687,2911.1,2910.3,0.1716]
[1644746455460,1.46087687,2911.0,2910.3,0.1716]
[1644746455662,1.46087687,2910.9,2910.8,1.07664222]
[1644746456060,2.10645493,2911.3,2910.8,1.07664222]
[1644746456261,1.46087687,2911.2,2910.8,1.67664222]
[1644746456567,1.46087687,2911.1,2910.8,1.67664222]
[1644746456861,1.46087687,2911.0,2910.8,1.67664222]
[1644746457061,1.46087687,2910.9,2910.8,1.67664222]
[1644746457322,1.46087687,2911.3,2910.8,1.67664222]
[1644746457515,1.46087687,2911.2,2910.8,1.67664222]
[1644746457718,1.46087687,2911.1,2910.8,1.67664222]
[1644746457915,1.46087687,2911.0,2910.8,1.67664222]
[1644746458115,1.46087687,2910.9,2910.8,1.67664222]
[1644746458316,0.01091364,2911.4,2910.8,1.67664222]
[1644746458518,1.46113883,2911.3,2910.8,1.67664222]
[1644746459117,0.64557806,2911.7,2910.8,1.67664222]
[1644746459118,1.46113883,2911.2,2910.8,1.67664222]
[1644746459316,1.46113883,2911.1,2910.8,22.67664222]
[1644746459515,1.46113883,2911.0,2910.8,22.67664222]
[1644746459717,0.01091364,2911.4,2910.8,22.67664222]
[1644746460020,1.4610527,2911.3,2910.9,25.16342439]
[1644746460217,0.64557806,2912.0,2911.8,0.89476598]
[1644746460417,1.46095652,2911.9,2911.8,0.89476598]
[1644746460717,1.46095652,2911.9,2911.8,0.6]
[1644746461058,1.46095652,2911.9,2911.2,8.40880332]
[1644746461059,1.46095652,2911.9,2911.3,1.0]
[1644746461256,1.46095652,2911.8,2911.3,1.3]
[1644746461461,1.46095652,2911.7,2911.3,1.6]
[1644746461664,1.46095652,2911.6,2911.3,1.60283942]
[1644746461860,1.46095652,2911.5,2911.0,1.0]